Cogmind - Beta 11 X7 @@@ ROGUE MODE // 2021.09.06 @ 19:55:32 Player: Plexion Result: Self-destructed Performance ------------- Evolutions (4) 2000 Regions Visited (8) 1600 Robots Destroyed (102) 510 Value Destroyed (2896) 2896 Prototype IDs (28) 560 Alien Tech Used (0) 0 Bonus (410) 410 TOTAL SCORE: 7976 Bonus ------- High Alert Combat Kills 110 Aligned with FarCom 300 Cogmind --------- Core Integrity 850/850 Matter 186/300 Energy 123/125 System Corruption 0% Temperature Cool (6) Movement Hovering (45) Location -6/Factory Parts ------- > --- POWER (2) -------- Light Ion Engine > --- PROPULSION (5) --- Airjet Aerolev Unit Aerolev Unit > --- UTILITY (6) ------ Medium Storage Unit Advanced Visual Processing Unit Improved Sensor Array Microactuators Advanced Transmission Jammer > --- WEAPON (2) ------- Chainsword Makeshift Axe > --- INVENTORY (10) --- Improved Actuator Array Improved Light Armor Plating Drone Bay (2/2) Plasma Cannon 8R-AWN's Boregun 8R-AWN's Boregun Rocket Launcher Plasma Cutter Longsword +1 Deploy-a-Sentry Peak State ------------ > --- POWER ------------ Reinforced Fission Core > --- PROPULSION ------- Armored Treads Armored Treads Advanced Treads Medium Treads > --- UTILITY ---------- Improved Heat Sink High-capacity Storage Unit Hardened Medium Armor Plating Reflective Plating > --- WEAPON ----------- Enhanced Autogun 8R-AWN's Boregun > --- INVENTORY -------- Light Angular Momentum Engine Advanced Treads Advanced Treads Advanced Treads Aerolev Unit Improved Terrain Scanner Transport Network Coupler Microactuators Microactuators Advanced Transmission Jammer Hardened Medium Armor Plating Enhanced Autogun Enhanced Autogun Enhanced Autogun 8R-AWN's Boregun Rocket Launcher Scythe Makeshift Axe Longsword +1 Deploy-a-Sentry [Rating: 51] Favorites ----------- Power Reinforced Fission Core Engine Ion Engine Power Core Reinforced Fission Core Propulsion Improved Treads Treads Improved Treads Wheel Compact Wheel Hover Unit Aerolev Unit Utility High-capacity Storage Unit Device Improved Heat Sink Storage High-capacity Storage Unit Processor Advanced Visual Processing Unit Protection Light Armor Plating Weapon Improved Light Cannon Ballistic Gun Enhanced Autogun Ballistic Cannon Improved Light Cannon Slashing Weapon Longsword +1 Build | -11 -10 -10 -10 -9 -8 -8 -7 -6 ------- Run | Scr Mat Min Exi Min Mat Sto Fac Fac Slots Evolved 8 | . . . . . 4 . 2 2 Power 1 | . . . . . . . . 1 Propulsion 3 | . . . . . 2 . 1 . Utility 4 | . . . . . 2 . 1 1 Weapon . | . . . . . . . . . Parts Attached 109 | 6 6 . 25 2 19 36 15 . Power 5 | 1 . . 2 . . 1 1 . Engine 4 | 1 . . 1 . . 1 1 . Core 1 | . . . 1 . . . . . Reactor . | . . . . . . . . . Propulsion 39 | 2 2 . 13 . 8 13 1 . Treads 23 | 2 . . 7 . 8 6 . . Leg . | . . . . . . . . . Wheel 12 | . 2 . 6 . . 4 . . Hover 4 | . . . . . . 3 1 . Flight . | . . . . . . . . . Utility 31 | 1 2 . 4 . 6 9 9 . Device 11 | . 1 . 1 . 1 1 7 . Storage 6 | 1 1 . 3 . . . 1 . Processor 2 | . . . . . . 1 1 . Hackware . | . . . . . . . . . Protection 12 | . . . . . 5 7 . . Artifact . | . . . . . . . . . Weapon 34 | 2 2 . 6 2 5 13 4 . Energy Gun . | . . . . . . . . . Energy Cannon . | . . . . . . . . . Ballistic Gun 17 | 2 . . 2 . 4 8 1 . Ballistic Cannon 7 | . 2 . 2 2 1 . . . Launcher . | . . . . . . . . . Special Weapon . | . . . . . . . . . Impact Weapon . | . . . . . . . . . Slashing Weapon 10 | . . . 2 . . 5 3 . Piercing Weapon . | . . . . . . . . . Special Melee Weapon . | . . . . . . . . . Unidentified Prototypes 5 | . . . 1 . 2 2 . . Parts Lost 20 | . . . 2 . 4 14 . . Power 2 | . . . 1 . . 1 . . Propulsion 7 | . . . 1 . 1 5 . . Utility 9 | . . . . . 2 7 . . Weapon 2 | . . . . . 1 1 . . Highest Loss Streak 8 | . . . 1 . 2 8 . . Average Slot Usage (%) 95 | . 88 100 97 100 90 97 79 73 Engine 3 | . 14 14 4 . . 2 5 6 Core 7 | . . . 9 14 9 6 . . Treads 24 | . 8 . 23 28 36 32 . . Wheel 3 | . 19 28 4 . . 3 . . Hover 2 | . . . . . . . 23 20 Device 12 | . 4 14 12 14 6 8 26 20 Storage 11 | . 14 14 14 14 9 9 7 6 Protection 5 | . . . . . 12 17 . . Ballistic Gun 9 | . 23 . 9 1 13 15 . . Ballistic Cannon 7 | . 3 28 10 26 4 . . . Slashing Weapon 5 | . . . 8 . . 2 13 13 Naked Turns . | . . . . . . . . . Heaviest Build 228 | 13 34 34 228 71 76 84 59 23 Greatest Support 112 | 40 40 32 46 46 112 112 24 24 Greatest Overweight (x) 12 | . 1 1 12 1 . 5 2 . Average Overweight (x) . | . . 1 1 1 . . . . Largest Inventory Capacity 35 | 8 15 15 35 20 20 20 20 10 Average Capacity 19 | 7 12 15 21 20 20 20 10 10 Most Carried 20 | 4 10 10 20 20 20 20 17 10 Average Carried 16 | 2 4 10 17 18 19 19 10 10 Final Capacity 20 | 8 15 15 20 20 20 20 10 10 Final Carried 20 | 4 10 10 20 19 20 18 10 10 Class Distribution -------------------- 90% | Mutant 4% | Scavenger-Mutant 4% | Hauler-Mutant Dominant Class ---------------- Mutant | -10/Materials Mutant | -10/Mines Mutant | -10/Exiles Mutant | -9/Mines Mutant | -8/Materials Mutant | -8/Storage Mutant | -7/Factory Mutant | -6/Factory Resources | -11 -10 -10 -10 -9 -8 -8 -7 -6 ----------- Run | Scr Mat Min Exi Min Mat Sto Fac Fac Matter Collected 3338 | 255 71 110 761 256 739 1092 54 . Remotely . | . . . . . . . . . Salvage Created 4397 | 16 103 42 565 262 910 2450 49 . Parts 280 | 1 6 3 68 13 63 124 2 . Haulers Intercepted 7 | . . . . . 2 5 . . Recyclers Shooed 5 | . 1 . . 1 1 2 . . Parts Field Recycled . | . . . . . . . . . Retrieved Matter . | . . . . . . . . . Parts Self-Destructed . | . . . . . . . . . Prevented . | . . . . . . . . . Kills | -11 -10 -10 -10 -9 -8 -8 -7 -6 ------- Run | Scr Mat Min Exi Min Mat Sto Fac Fac Combat Hostiles Destroyed 69 | . 2 3 3 5 22 34 . . Melee 1 | . . . 1 . . . . . Guns 48 | . 2 . 1 . 11 34 . . Cannons 20 | . . 3 1 5 11 . . . Classes Destroyed 17 | 1 1 1 3 3 3 5 . . Worker 8 | 1 . . . 2 1 2 2 . Builder 1 | . . . . . . 1 . . Tunneler 1 | . . . . 1 . . . . Hauler 7 | . . . . . 2 5 . . Recycler 7 | . . . . 2 . 5 . . Mechanic 1 | . . . . . . 1 . . Operator 1 | . . . . . . 1 . . Turret 1 | . . . 1 . . . . . Swarmer 10 | . . . . 2 4 4 . . Grunt 38 | . 2 2 . 3 12 19 . . Brawler 1 | . . . . . . 1 . . Duelist 2 | . . . . . 1 1 . . Protector 1 | . . . . . . 1 . . Sentry 13 | . . . . . 5 8 . . Demolisher 1 | . . 1 . . . . . . Zionite 6 | . . . 6 . . . . . Assembled 2 | . . . 2 . . . . . Best Kill Streak 9 | 1 2 2 2 2 9 9 1 . Combat Bots Only 9 | . 2 2 1 2 9 9 . . Max Kills in Single Turn 2 | 1 1 1 1 2 2 1 1 . Gunslinging . | . . . . . . . . . Exploded . | . . . . . . . . . Melee 1 | . . . 1 . . . . . Uniques/NPCs Destroyed 4 | . . . 4 . . . . . 8R-AWN (-10/Exiles) EX-DEC (-10/Exiles) EX-BIN (-10/Exiles) EX-HEX (-10/Exiles) Combat | -11 -10 -10 -10 -9 -8 -8 -7 -6 -------- Run | Scr Mat Min Exi Min Mat Sto Fac Fac Damage Taken 5714 | . 74 157 1008 212 1310 2858 95 . Core 666 | . . 14 129 42 143 323 15 . Absorbed by Shields 21 | . . . . . . 21 . . Core Remaining (%) 59 | 100 . . . 26 . 15 97 . Volleys Fired 355 | 3 6 10 96 25 82 133 . . Largest 2 | 2 2 2 2 2 2 2 . . Hottest 78 | 40 40 78 78 78 78 55 . . Shots Fired 646 | 6 12 20 138 45 164 261 . . Gun 515 | 6 12 . 125 5 106 261 . . Cannon 131 | . . 20 13 40 58 . . . Launcher . | . . . . . . . . . Special . | . . . . . . . . . Kinetic 646 | 6 12 20 138 45 164 261 . . Thermal . | . . . . . . . . . Explosive . | . . . . . . . . . Electromagnetic . | . . . . . . . . . Robot Hit Streak 14 | 5 10 3 14 7 11 13 . . Robot Miss Streak 7 | . 2 3 7 6 3 3 . . Penetration Max 2 | . . . 1 1 . 2 . . Secondary Targets 3 | . . . . . . 3 . . Max Gunslinging Chain 1 | . . . . . . 1 . . Autonomous 37 | . . . 37 . . . . . Shots Hit Robots 438 | 5 10 10 101 25 107 177 3 . Core Hits 178 | 1 6 5 27 11 42 84 2 . Critical Kills 8 | . . . 6 1 1 . . . Critical Parts Destroyed 18 | . . . 14 1 . 3 . . Critical Strikes 31 | . . . 20 4 4 3 . . Destroy 26 | . . . 20 2 1 3 . . Blast 5 | . . . . 2 3 . . . Melee Attacks 49 | . . . 24 . . 10 15 . Impact . | . . . . . . . . . Slashing 49 | . . . 24 . . 10 15 . Piercing . | . . . . . . . . . Sneak Attacks 6 | . . . 3 . . 1 2 . Combat Hostiles . | . . . . . . . . . Follow-up Attacks . | . . . . . . . . . Damage Inflicted 9883 | 55 98 206 3479 567 2039 3172 267 . Guns 6048 | 55 98 . 1540 64 1243 3048 . . Cannons 1587 | . . 206 82 503 796 . . . Explosions . | . . . . . . . . . Melee 2247 | . . . 1857 . . 123 267 . Ramming 1 | . . . . . . 1 . . Kinetic 7635 | 55 98 206 1622 567 2039 3048 . . Thermal . | . . . . . . . . . Explosive . | . . . . . . . . . Electromagnetic . | . . . . . . . . . Impact . | . . . . . . . . . Slashing 2247 | . . . 1857 . . 123 267 . Piercing . | . . . . . . . . . Highest Corruption . | . . . . . . . . . Average Corruption . | . . . . . . . . . Corruption Purged . | . . . . . . . . . Overload Shots . | . . . . . . . . . Overflow Damage 333 | . . . 223 18 . . 92 . Projectiles 18 | . . . . 18 . . . . Explosions . | . . . . . . . . . Melee 315 | . . . 223 . . . 92 . Knockbacks 25 | . . 4 1 5 15 . . . Impact . | . . . . . . . . . Kinetic 21 | . . 4 1 5 11 . . . Secondary 4 | . . . . . 4 . . . Self-Inflicted Damage . | . . . . . . . . . Shots . | . . . . . . . . . Rammed 1 | . . . . . . 1 . . Targets Rammed 1 | . . . . . . 1 . . Kicked . | . . . . . . . . . Crushed . | . . . . . . . . . Highest Temperature 223 | . 9 1 108 22 223 160 . . Average Temperature 47 | . 8 1 55 11 68 31 . . Received Heat Transfer 1961 | . 42 36 . 48 594 1223 18 . Siege Activations . | . . . . . . . . . Robots Corrupted . | . . . . . . . . . Combat Hostiles . | . . . . . . . . . Parts Fried . | . . . . . . . . . Impact Corruptions . | . . . . . . . . . Robots Melted . | . . . . . . . . . Combat Hostiles . | . . . . . . . . . Parts Melted . | . . . . . . . . . Heat Transferred . | . . . . . . . . . Parts Sabotaged . | . . . . . . . . . Parts Stolen . | . . . . . . . . . Parts Stripped . | . . . . . . . . . Power Chain Reactions . | . . . . . . . . . Missiles Intercepted . | . . . . . . . . . Alert | -11 -10 -10 -10 -9 -8 -8 -7 -6 ------- Run | Scr Mat Min Exi Min Mat Sto Fac Fac Peak Influence 569 | 5 94 131 . 75 452 569 299 68 Initial 228 | . 3 36 . . 29 152 228 68 Average 241 | . 36 82 . 36 235 396 199 68 Maximum Alert Level 2 | . . . . . 2 2 1 . Low Security (%) 39 | 100 100 100 . 100 28 3 44 100 Level 1 39 | . . . . . 69 44 55 . Level 2 20 | . . . . . 2 51 . . Level 3 . | . . . . . . . . . Level 4 . | . . . . . . . . . Level 5 . | . . . . . . . . . High Security . | . . . . . . . . . Max Security . | . . . . . . . . . Squads Dispatched 9 | . 1 . . . 2 6 . . Investigation 1 | . . . . . 1 . . . Extermination . | . . . . . . . . . Reinforcement 4 | . 1 . . . 1 2 . . Assault 4 | . . . . . . 4 . . Garrison . | . . . . . . . . . Intercept . | . . . . . . . . . Construction Impeded . | . . . . . . . . . Haulers Reinforced . | . . . . . . . . . Active Scanning Responses . | . . . . . . . . . Cargo Convoy Interrupts . | . . . . . . . . . Stealth | -11 -10 -10 -10 -9 -8 -8 -7 -6 --------- Run | Scr Mat Min Exi Min Mat Sto Fac Fac Distress Signals 6 | . . . . . 5 1 . . Communications Jammed . | . . . . . . . . . Distress Signals . | . . . . . . . . . Times Spotted 173 | . 3 4 53 7 41 57 8 . Peak Tracking Total 12 | . 4 3 9 3 10 12 3 . Tactical Retreats 35 | . . . 25 1 2 4 3 . Traps | -11 -10 -10 -10 -9 -8 -8 -7 -6 ------- Run | Scr Mat Min Exi Min Mat Sto Fac Fac Traps Triggered 4 | . . . . . 1 3 . . Indirectly . | . . . . . . . . . Trap Hack Attempts . | . . . . . . . . . Triggered . | . . . . . . . . . Disarmed . | . . . . . . . . . Reprogrammed . | . . . . . . . . . Reused . | . . . . . . . . . Traps Extracted . | . . . . . . . . . Installed . | . . . . . . . . . Triggered . | . . . . . . . . . Exploded 3 | . . . 3 . . . . . Machines | -11 -10 -10 -10 -9 -8 -8 -7 -6 ---------- Run | Scr Mat Min Exi Min Mat Sto Fac Fac Machines Disabled 20 | . . . 13 . . 7 . . Max in Single Turn 1 | . . . 1 . . 1 . . Garrison Access 1 | . . . . . . 1 . . Machines Sabotaged . | . . . . . . . . . Garrisons Compromised . | . . . . . . . . . Overloaded Fab Kills . | . . . . . . . . . Fab Network Shutdowns . | . . . . . . . . . Hacking | -11 -10 -10 -10 -9 -8 -8 -7 -6 --------- Run | Scr Mat Min Exi Min Mat Sto Fac Fac Machines Accessed 10 | . 1 . 2 . 1 6 . . Terminals 7 | . 1 . . . 1 5 . . Fabricators . | . . . . . . . . . Repair Stations . | . . . . . . . . . Recycling Units . | . . . . . . . . . Scanalyzers . | . . . . . . . . . Garrison Access 1 | . . . . . . 1 . . Total Hacks 21 | . 3 . 2 . 3 13 . . Successful 13 | . 2 . 2 . 2 7 . . Failed 8 | . 1 . . . 1 6 . . Catastrophic . | . . . . . . . . . Database Lockouts . | . . . . . . . . . Manual 13 | . 3 . 1 . 4 5 . . Terminals 16 | . 3 . . . 3 10 . . Fabricators . | . . . . . . . . . Repair Stations . | . . . . . . . . . Recycling Units . | . . . . . . . . . Scanalyzers . | . . . . . . . . . Garrison Access 3 | . . . . . . 3 . . Terminal Hacks 8 | . . . 2 . 1 5 . . Record 1 | . . . 1 . . . . . Open Door 3 | . . . . . . 3 . . Unreport Threat 1 | . . . . . . 1 . . Zone Layout 2 | . . . . . 1 1 . . EX-Prototype ID Bank 1 | . . . 1 . . . . . Fabricator Hacks . | . . . . . . . . . Repair Station Hacks . | . . . . . . . . . Recycling Unit Hacks . | . . . . . . . . . Scanalyzer . | . . . . . . . . . Garrison Access Hacks 1 | . . . . . . 1 . . Seal Access 1 | . . . . . . 1 . . Unauthorized Hacks 4 | . 2 . . . 1 1 . . Terminals 4 | . 2 . . . 1 1 . . Track 3 | . 1 . . . 1 1 . . Botnet 1 | . 1 . . . . . . . Fabricators . | . . . . . . . . . Repair Stations . | . . . . . . . . . Recycling Units . | . . . . . . . . . Scanalyzers . | . . . . . . . . . Garrison Access . | . . . . . . . . . Data Cores Recovered 1 | . . . . . . 1 . . Used . | . . . . . . . . . Hacking Detections 5 | . 1 . . . . 4 . . Full Trace Events . | . . . . . . . . . Feedback Events . | . . . . . . . . . Feedback Blocked . | . . . . . . . . . Robot Schematics Acquired . | . . . . . . . . . Robots Built . | . . . . . . . . . Matter . | . . . . . . . . . Time . | . . . . . . . . . Total Robot Build Rating . | . . . . . . . . . Part Schematics Acquired . | . . . . . . . . . Parts Built . | . . . . . . . . . Matter . | . . . . . . . . . Time . | . . . . . . . . . Total Part Build Rating . | . . . . . . . . . Parts Repaired . | . . . . . . . . . Time . | . . . . . . . . . Parts Recycled . | . . . . . . . . . Recycled Matter . | . . . . . . . . . Retrieved Matter . | . . . . . . . . . Retrieved Components . | . . . . . . . . . Parts Scanalyzed . | . . . . . . . . . Part Schematics Acquired . | . . . . . . . . . Parts Damaged . | . . . . . . . . . Bothacking | -11 -10 -10 -10 -9 -8 -8 -7 -6 ------------ Run | Scr Mat Min Exi Min Mat Sto Fac Fac Used RIF Installer . | . . . . . . . . . Robots Hacked . | . . . . . . . . . Non-combat . | . . . . . . . . . Combat . | . . . . . . . . . Robot Hacks Applied . | . . . . . . . . . Relay Couplers Released . | . . . . . . . . . Robots Rewired . | . . . . . . . . . Allies Hacked . | . . . . . . . . . Hacks Repelled . | . . . . . . . . . Allies | -11 -10 -10 -10 -9 -8 -8 -7 -6 -------- Run | Scr Mat Min Exi Min Mat Sto Fac Fac Total Allies 2 | . . . . . . 2 . . Largest Group 2 | . . . . . . 2 . . Highest-Rated Group 62 | . . . . . . 62 . . Highest-Rated Ally 31 | . . . . . . 31 . . Total Orders 2 | . . . . . . . 2 . EXPLORE 2 | . . . . . . . 2 . Ally Attacks 12 | . . . . . . 12 . . Total Damage 146 | . . . . . . 146 . . Kills . | . . . . . . . . . Allies Corrupted . | . . . . . . . . . Allies Melted . | . . . . . . . . . Intel | -11 -10 -10 -10 -9 -8 -8 -7 -6 ------- Run | Scr Mat Min Exi Min Mat Sto Fac Fac Robot Analysis Total . | . . . . . . . . . Derelict Logs Recovered . | . . . . . . . . . Drone Launches 2 | . . . . . . . 2 . Drone Recoveries . | . . . . . . . . . Exploration | -11 -10 -10 -10 -9 -8 -8 -7 -6 ------------- Run | Scr Mat Min Exi Min Mat Sto Fac Fac Turns Passed 8196 | 118 186 158 3586 699 938 1773 723 15 Spaces Moved 3828 | 65 127 72 1406 241 409 895 581 32 Core 6 | 6 . . . . . . . . Treads 2400 | 59 34 . 1022 241 409 635 . . Legs . | . . . . . . . . . Wheels 808 | . 93 72 384 . . 259 . . Hover 614 | . . . . . . 1 581 32 Flight . | . . . . . . . . . Fastest Speed 45 | 50 100 115 100 260 160 105 45 45 Average Speed 175 | 149 118 115 228 260 160 147 93 45 Slowest Speed 560 | 160 160 115 560 260 160 171 165 45 Overloaded Moves . | . . . . . . . . . Propulsion Burnouts . | . . . . . . . . . Robots Hopped . | . . . . . . . . . Cave-ins Triggered . | . . . . . . . . . Exploration Rate (%) 36 | 5 26 14 91 40 42 88 23 1 Regions Visited 8 Branch Regions 4 Pre-discovered Areas 1 | . . . 1 . . . . . Known Exits Taken . | . . . . . . . . . Unknown Exits Taken 8 | 1 1 1 1 1 1 1 1 . Scrap Searched 1 | . . . . 1 . . . . Spaces Dug 8 | . . . . . . 1 7 . Terrain Destroyed 61 | . . . 47 3 2 2 7 . Melee 8 | . . . . . . 1 7 . Projectile 50 | . . . 44 3 2 1 . . AOE . | . . . . . . . . . Terrain Rammed . | . . . . . . . . . Walls Destroyed . | . . . . . . . . . Machines Disabled . | . . . . . . . . . Actions | -11 -10 -10 -10 -9 -8 -8 -7 -6 --------- Run | Scr Mat Min Exi Min Mat Sto Fac Fac Total 4815 | 77 152 127 1646 269 582 1180 748 34 Wait 307 | . . 46 41 . 34 60 126 . Move 3821 | 64 126 71 1405 240 408 895 580 32 Hop . | . . . . . . . . . Pick Up 90 | 4 7 . 41 1 17 14 5 1 Fast Attach 31 | 6 4 . 2 . 7 10 2 . Attach 33 | . . . 8 . 5 10 10 . Detach 14 | . 3 . 6 . 2 1 2 . Swap 45 | . 2 . 15 2 7 16 3 . Drop 65 | . 4 . 8 1 20 22 9 1 Fire 355 | 3 6 10 96 25 82 133 . . Melee 45 | . . . 24 . . 10 11 . Ram . | . . . . . . . . . Kick . | . . . . . . . . . Crush . | . . . . . . . . . Escape Stasis 9 | . . . . . . 9 . . Rewire . | . . . . . . . . . Trap . | . . . . . . . . . Miscellaneous . | . . . . . . . . . Route ------- -11/Scrapyard -10/Materials -10/Mines -10/Exiles (discovered 2 exits: [*Min x2]) -9/Mines -8/Materials -8/Storage (discovered 2 exits: [*Fac] / [Rec]) -7/Factory -6/Factory History --------- Turn | Location | Event 3 | -11/Scrapyard | Discovered new exit (range 16) 119 | -11/Scrapyard | Entered Materials 261 | -10/Materials | Discovered new exit (range 14) 303 | -10/Materials | Build established: Mutant 305 | -10/Materials | Entered Mines 365 | -10/Mines | Assembled infested the area 370 | -10/Mines | Assisted by a Guerilla fighting off Assembled 459 | -10/Mines | Deemed a non-threat by the Exiles lab entrance 459 | -10/Mines | Discovered new exit (range 5) 463 | -10/Mines | Entered Exiles 492 | -10/Exiles | Met 8R-AWN 511 | -10/Exiles | Met EX-HEX 578 | -10/Exiles | Met EX-DEC 597 | -10/Exiles | Learned location of Zion (-6) 620 | -10/Exiles | Met EX-BIN 648 | -10/Exiles | Aligned with FarCom system 649 | -10/Exiles | Given EX-Vault access code 679 | -10/Exiles | Opened EX-Vault 686 | -10/Exiles | Found Longsword +1 689 | -10/Exiles | Found AWS/Gauss 712 | -10/Exiles | Warned to stay clear of 0b10 Research branches 1516 | -10/Exiles | Attacked by the Exiles 1668 | -10/Exiles | Core integrity fell below 50% 1676 | -10/Exiles | Destroyed 8R-AWN 1686 | -10/Exiles | Build established: Hauler-Mutant 1695 | -10/Exiles | Found Prototype Ballistic Gun 1701 | -10/Exiles | Found Prototype Ballistic Gun 1787 | -10/Exiles | Identified 8R-AWN's Boregun (x2) 2019 | -10/Exiles | Build established: Mutant 2316 | -10/Exiles | Destroyed EX-DEC 2382 | -10/Exiles | Destroyed EX-BIN 2453 | -10/Exiles | Destroyed EX-HEX 2574 | -10/Exiles | Found Deploy-a-Sentry 2975 | -10/Exiles | Discovered new exit (range 14) 3375 | -10/Exiles | Discovered new exit (range 15) 4049 | -10/Exiles | Stole three prototypes: Longsword +1, AWS/Gauss, Deploy-a-Sentry 4049 | -10/Exiles | Entered Mines 4062 | -9/Mines | Discovered new exit (range 7) 4196 | -9/Mines | A weapon hastily lodged in a ceiling crevice suddenly fell to the ground 4330 | -9/Mines | Found a hidden stash of uninstalled traps 4748 | -9/Mines | Entered Materials 4748 | -8/Materials | Evolved 4 slots: Propulsion x2, Utility x2 4910 | -8/Materials | Destroyed 9 combat bots 5618 | -8/Materials | Discovered new exit (range 4) 5686 | -8/Materials | Entered Storage 5759 | -8/Storage | Met a pair of Derelict thieves 5774 | -8/Storage | Destroyed 7 combat bots 5916 | -8/Storage | Lost 3 parts (1n2u) 5925 | -8/Storage | Destroyed 9 combat bots 6963 | -8/Storage | Discovered new exit (range 15) 7224 | -8/Storage | Build established: Scavenger-Mutant 7241 | -8/Storage | Found Prototype Processor 7241 | -8/Storage | Identified Exp. Targeting Computer 7286 | -8/Storage | First assault squad dispatched 7300 | -8/Storage | Core integrity fell below 50% 7432 | -8/Storage | Discovered new exit (range 16) 7445 | -8/Storage | Core integrity fell below 20% 7459 | -8/Storage | Entered Factory 7459 | -7/Factory | Evolved 2 slots: Propulsion x1, Utility x1 7485 | -7/Factory | Lost 8 parts (1p4n2u1w) 7653 | -7/Factory | Build established: Mutant 8172 | -7/Factory | Discovered new exit (range 17) 8182 | -7/Factory | Entered another Factory area 8182 | -6/Factory | Evolved 2 slots: Power x1, Utility x1 8197 | -6/Factory | Self-destructed Last Messages --------------- 07886_ K-01 Serf collects debris. 07888_ R-06 Scavenger collects Prototype Energy Cannon. 07889_ K-01 Serf collects debris. 07907_ Dropped Chainsword. 07908_ Acquired Imp. Sensor Array. 07950_ U-05 Engineer builds a Wall. 08086_ K-01 Serf cleans the Pressure Siphon. 08149_ ALERT: Cargo convoy en route, clear transfer corridor. 08159_ Dropped Imp. Terrain Scanner. 08159_ Acquired Actuator Array. 08169_ Dropped Microactuators. 08169_ Acquired Adv. Visual Processing Unit. 08172_ EXIT=FOUND PARAMETERS=POWER+1,UTILITY+1 LOCATION=UNKNOWN GOAL=ESCAPE 08189_ Dropped Actuator Array. 08189_ Acquired Imp. Actuator Array. 08197_ Connecting with Fabricator... 08197_ Current location identified: Factory Map ----- +----------------------------------------------------+ | ??????????????????????????????????????????? | | ??????????????????????????????????????????? | | ??????????????????????????????????????????? | | ??????????????????????????????????????????? | | ??????????????????????????????????????????? | | ??????????????????????????????????????????? | | ??????????????????????????????????????????? | | ??????????????????????????????????????????? | | ??????????????????#???##??????????????????? | | ?????????????????? ?? ??????????????????? | | ?????????????????? ?? ??????????????????? | | ?????????????????" "?" ??????????????????? | | ?????????????????" "?" #?????????????????? | | ?????????????????" "?" #?????????????????? | | ???????????????? #?????????????????? | | ????????????????"" """ #?????????????????? | | ???????????# ??""" """ #?????????????????? | | ???????????# """ """ #?????????????????? | | ???????????# +?????????????????? | | ???????????# ! """ #?????????????????? | | ???????????# """ #?????????????????? | | ???????????# """ """ #?????????????????? | | ???????????# """ #####+####????????? | | ???????????# """ "" #????????? | | ???????????# """ F"" #????????? | | ???????????+ """@""" ###### #?? | | ???????????# +?? | | ???????????# ###### #?? | | ???????????####+#############+#####???????? | | ????????????????????????# #???????? | | ????????????????????????# #???????? | | ????????????????????????# #???????? | | ????????????????????????# ! #???????? | | ????????????????????????# ! #???????? | | ????????????????????????# [ #???????? | | ????????????????????????# [! #???????? | | ????????????????????????# [! #???????? | | ????????????????????????###########???????? | | ??????????????????????????????????????????? | | ??????????????????????????????????????????? | | ??????????????????????????????????????????? | | ??????????????????????????????????????????? | | ??????????????????????????????????????????? | | ??????????????????????????????????????????? | | ??????????????????????????????????????????? | | ??????????????????????????????????????????? | | ??????????????????????????????????????????? | | ??????????????????????????????????????????? | | ??????????????????????????????????????????? | | ??????????????????????????????????????????? | +----------------------------------------------------+ Best States ------------- Heat Dissipation 45 Energy Generation 19 Energy Capacity 310 Matter Stores 300 Matter Capacity 300 Sight Range 20 Robot Scan Range 15 Terrain Scan Range 16 Terrain Scan Density 10 Jamming Range 16 Armor Coverage 450 Resistance: TH 10 Evasion (%) 56 Recoil Reduction 4 Item Schematics ----------------- None Robot Schematics ------------------ None Fabricated ------------ Nothing Alien Tech Used ----------------- None Achievements -------------- None Challenges ------------ None Game ------ Seed BiometalLightpackWell Manual? 0 Play Time 00:43:48 Cumulative 225.7 hours Start 2021.09.06 @ 14:37:52 End 2021.09.06 @ 19:55:32 Sessions 3 Manual Loads 0 Difficulty Rogue Special Mode None Game No. 287 Rogue 200 Adventurer 87 Explorer 0 Win Type - Total 5 Types 3/0/1/1/0/0/0/0/0 Lore% 70 Gallery% 79 Achievement% 66 Wizard Run 0 Options --------- ASCII 0 Keyboard 1 Movement Numpad Keybinds 0 Fullscreen 1 Font 18/Smallcaps Map View 76x50 Tactical HUD 1 Map Filters NONE Filters NONE Steam 1 RUN: a5c213b8-71ed-444d-9974-730204598392